bitfinex/quotes_SOLUSD_20250531
["timestamp","ask_amount","ask_price","bid_price","bid_amount"]
[1748704065488,13.94369637,155.46,155.41,20.378014]
[1748704068095,6.43253162,155.46,155.41,6.43431763]
[1748704068284,13.94369637,155.45,155.41,6.43431763]
[1748704069781,25.58369637,155.45,155.41,6.43431763]
[1748704072999,11.64,155.45,155.41,20.378014]
[1748704079396,25.58369637,155.45,155.41,6.43431763]
[1748704081017,11.64,155.45,155.41,6.43431763]
[1748704081801,11.64,155.45,155.41,20.378014]
[1748704083096,6.5917,155.48,155.44,32.87766837]
[1748704083298,6.5917,155.48,155.44,74.33766837]
[1748704084497,6.5917,155.48,155.45,13.94369637]
[1748704084699,6.5917,155.48,155.44,74.33766837]
[1748704085219,6.5917,155.48,155.45,6.43293663]
[1748704086193,20.53539637,155.48,155.44,47.89319958]
[1748704088107,6.5917,155.48,155.44,61.83689595]
[1748704088316,20.53539637,155.48,155.44,47.89319958]
[1748704091030,6.5917,155.48,155.44,47.89319958]
[1748704092398,6.5917,155.48,155.44,61.83689595]
[1748704096123,6.5917,155.48,155.44,47.89319958]
[1748704097515,6.5917,155.48,155.44,47.61319958]
[1748704098532,6.5917,155.48,155.44,47.59319958]
[1748704098729,8.93649596,155.47,155.43,6.43359556]
[1748704099232,8.93649596,155.46,155.42,41.16]
[1748704099922,8.93649596,155.47,155.42,41.16]
[1748704100119,15.52819596,155.48,155.43,6.43376439]
[1748704101433,8.93649596,155.47,155.43,6.43376439]
[1748704103321,15.52819596,155.48,155.43,15.37026035]
[1748704104127,1.6592,155.49,155.46,15.36901879]
[1748704104607,11.42,155.5,155.47,8.93649596]
[1748704104805,11.42,155.5,155.48,8.93649596]
[1748704105820,11.42,155.5,155.49,8.93649596]
[1748704106241,11.42,155.55,155.5,18.933972]
[1748704106540,11.42,155.55,155.51,8.93649596]
[1748704106843,11.42,155.55,155.52,8.93649596]
[1748704107148,11.42,155.55,155.5,59.953972]
[1748704107149,11.42,155.55,155.51,49.95649596]
[1748704107734,11.42,155.55,155.52,8.93649596]
[1748704108038,11.42,155.55,155.52,13.94803309]
[1748704108207,11.42,155.55,155.52,20.37807424]
[1748704108925,6.0616,155.56,155.52,20.37807424]
[1748704111035,105.6915,155.57,155.54,13.94803309]
[1748704111237,105.6915,155.57,155.55,13.94803309]
[1748704111444,17.4816,155.6,155.56,13.94803309]
[1748704111813,17.4816,155.6,155.57,6.42797454]
[1748704112432,17.4816,155.6,155.58,13.94803309]
[1748704113034,11.42,155.6,155.58,13.94803309]
[1748704113616,11.42,155.6,155.59,13.94803309]
[1748704113837,11.42,155.6,155.59,20.37518136]
[1748704114826,11.42,155.6,155.59,6.42714827]
[1748704115331,11.42,155.6,155.59,20.37518136]
[1748704115644,11.42,155.6,155.59,6.42714827]
[1748704116316,11.42,155.6,155.59,20.37518136]
[1748704116526,11.42,155.6,155.59,61.37518136]
[1748704116766,11.42,155.6,155.59,47.42714827]
[1748704117274,8.1089,155.64,155.6,18.64964886]
[1748704117540,8.1089,155.64,155.6,32.59768195]
[1748704117747,23.94692888,155.65,155.61,14.23235623]
[1748704118044,103.72,155.67,155.64,6.42508352]
[1748704118227,117.66803309,155.67,155.64,6.42508352]
[1748704118635,103.72,155.67,155.64,6.42508352]
[1748704119243,103.72,155.67,155.64,20.37311661]
[1748704119424,103.72,155.67,155.64,6.42508352]
[1748704121356,11.14,155.67,155.64,20.37311661]
[1748704121729,11.14,155.67,155.64,6.42508352]
[1748704121929,11.14,155.67,155.66,13.94803309]
[1748704122227,11.14,155.67,155.66,54.86803309]
[1748704122950,11.14,155.67,155.66,40.92]
[1748704123859,11.14,155.67,155.66,47.34425799]
[1748704125047,11.14,155.67,155.66,61.29229108]
[1748704125242,11.14,155.67,155.66,80.22626308]
[1748704125851,19.184,155.72,155.66,80.22626308]
[1748704126051,13.94803309,155.71,155.66,80.22626308]
[1748704126529,25.60582582,155.72,155.66,47.34425799]
[1748704126731,13.94803309,155.7,155.66,47.34425799]
[1748704127052,19.184,155.72,155.67,18.933972]
[1748704127255,19.184,155.72,155.68,13.94803309]
[1748704127953,39.94803309,155.73,155.67,18.933972]
[1748704127954,13.94803309,155.73,155.7,6.4225214]
[1748704128255,25.08803309,155.74,155.7,6.4225214]
[1748704128849,11.14,155.74,155.7,6.4225214]
[1748704129157,25.08803309,155.74,155.7,6.4225214]
[1748704129527,11.14,155.74,155.7,20.37055449]
[1748704130536,11.14,155.74,155.71,13.94803309]
[1748704131358,13.94803309,155.73,155.69,47.24289467]
[1748704132348,25.08803309,155.74,155.69,61.19092776]
[1748704135353,11.14,155.74,155.69,47.24289467]
[1748704135558,25.08803309,155.74,155.69,61.19092776]
[1748704135744,13.94803309,155.73,155.69,47.24289467]
[1748704136757,11.14,155.74,155.71,6.4221951]
[1748704136964,25.08803309,155.74,155.71,6.4221951]
[1748704139550,13.94803309,155.73,155.7,6.42249798]
[1748704139935,25.08803309,155.74,155.7,6.42249798]
[1748704144243,11.14,155.74,155.71,18.933972]
[1748704144447,25.08803309,155.74,155.71,18.933972]
[1748704146562,25.08803309,155.74,155.7,6.42260757]
[1748704146563,13.94803309,155.73,155.7,6.42260757]
[1748704148164,11.14,155.74,155.7,6.42260757]
[1748704148367,11.14,155.74,155.71,32.88200509]
[1748704148553,11.14,155.74,155.72,6.42178268]
[1748704149368,25.08803309,155.74,155.72,6.42178268]
[1748704149959,11.14,155.74,155.72,6.42178268]
[1748704159276,26.46893309,155.8,155.73,73.30200509]
[1748704159447,26.46893309,155.8,155.76,13.94803309]
[1748704160069,26.46893309,155.8,155.75,13.94803309]
[1748704160777,13.94803309,155.79,155.75,18.933972]
[1748704161272,13.94803309,155.79,155.76,6.42013353]
[1748704162480,13.94803309,155.78,155.75,25.35437603]
[1748704162655,13.94803309,155.77,155.74,6.42089508]
[1748704164253,18.93955643,155.8,155.74,20.36892817]
[1748704164254,12.5209,155.8,155.74,20.36892817]
[1748704164458,13.94803309,155.79,155.75,13.94803309]
[1748704164658,26.46893309,155.8,155.75,32.59768195]
[1748704165357,26.46893309,155.8,155.76,6.42013353]
[1748704166160,13.94803309,155.79,155.76,6.42013353]
[1748704166869,13.94803309,155.78,155.74,6.420958]
[1748704167560,13.94803309,155.77,155.74,6.420958]
[1748704169094,13.94803309,155.77,155.73,6.42124672]
[1748704170609,13.94803309,155.78,155.73,6.42124672]
[1748704170771,13.94803309,155.78,155.73,20.36927981]
[1748704171384,13.94803309,155.77,155.73,6.42124672]
[1748704173212,6.41907844,155.79,155.73,6.42124672]
[1748704173512,13.94803309,155.79,155.74,32.88200509]
[1748704175297,13.94803309,155.78,155.75,6.42054574]
[1748704175616,13.94803309,155.77,155.74,6.42078002]
[1748704175823,13.94803309,155.76,155.74,6.42078002]
[1748704177091,13.94803309,155.76,155.73,6.42137032]
[1748704177891,24.68803309,155.77,155.73,6.42137032]
[1748704179189,1.6009,155.8,155.76,13.94803309]
[1748704179495,1.6009,155.8,155.77,13.94803309]
[1748704179695,1.6009,155.8,155.75,40.18]
[1748704179696,1.6009,155.8,155.76,13.94803309]
[1748704179992,1.6009,155.8,155.77,18.933972]
[1748704181404,15.54893309,155.8,155.75,54.12803309]
[1748704181606,13.94803309,155.79,155.75,6.42054574]
[1748704182121,15.54893309,155.8,155.75,6.42054574]
[1748704182704,13.94803309,155.79,155.75,6.42054574]
[1748704184721,13.94803309,155.78,155.75,6.42054574]
[1748704185314,13.94803309,155.79,155.75,6.42054574]
[1748704186497,13.94803309,155.78,155.75,6.42054574]
[1748704188024,1.6009,155.8,155.75,6.42054574]
[1748704188320,1.6009,155.8,155.76,18.933972]
[1748704188512,15.54893309,155.8,155.77,6.41972138]
[1748704191297,13.94803309,155.78,155.75,6.42054574]
[1748704191521,1.6009,155.8,155.75,6.42054574]
[1748704191522,13.94803309,155.79,155.75,6.42054574]
[1748704192796,1.6009,155.8,155.77,6.41972138]
[1748704195637,17.2015,155.81,155.77,6.41972138]
[1748704195929,31.14953309,155.81,155.77,6.41972138]
[1748704196420,13.94803309,155.8,155.77,6.41972138]
[1748704197620,31.14953309,155.81,155.77,6.41972138]
[1748704199310,13.94803309,155.8,155.77,6.41972138]
[1748704200528,31.14953309,155.81,155.77,6.41972138]
[1748704200922,17.2015,155.81,155.77,36.41705793]
[1748704203019,17.2015,155.81,155.77,22.46902484]
[1748704203523,31.14953309,155.81,155.77,22.46902484]
[1748704204116,31.14953309,155.81,155.77,6.41972138]
[1748704205026,17.2015,155.81,155.75,6.42054574]
[1748704205217,13.94803309,155.79,155.75,6.42054574]
[1748704206113,13.94803309,155.79,155.74,22.47252268]
[1748704206337,13.94803309,155.78,155.74,22.47252268]
[1748704206843,13.94803309,155.79,155.74,22.47252268]
[1748704207020,17.2015,155.81,155.75,18.933972]
[1748704207338,17.2015,155.81,155.75,32.88200509]
[1748704207339,13.94803309,155.8,155.75,32.88200509]
[1748704207545,31.14953309,155.81,155.76,13.94803309]
[1748704207720,31.14953309,155.81,155.75,32.88200509]
[1748704208137,31.14953309,155.81,155.76,6.42013353]
[1748704209639,31.14953309,155.81,155.77,18.933972]
[1748704209640,17.2015,155.81,155.77,18.933972]
[1748704210218,17.2015,155.81,155.78,6.41930928]
[1748704211032,31.14953309,155.81,155.78,6.41930928]
[1748704213726,17.2015,155.81,155.78,6.41930928]
[1748704213931,10.74,155.81,155.78,6.41930928]
[1748704214756,24.68803309,155.81,155.78,6.41930928]
[1748704215066,13.94803309,155.8,155.78,6.41930928]
[1748704215525,24.68803309,155.81,155.78,6.41930928]
[1748704217054,24.68803309,155.81,155.76,25.35410553]
[1748704217759,24.68803309,155.81,155.76,41.40443937]
[1748704224861,24.68803309,155.81,155.76,6.42013353]
[1748704225158,20.10533309,155.8,155.76,6.42013353]
[1748704226253,6.1573,155.8,155.76,41.12011623]
[1748704226453,6.1573,155.8,155.76,55.06814932]
[1748704226958,6.1573,155.8,155.76,41.12011623]
[1748704227653,20.10533309,155.8,155.76,41.12011623]
[1748704229465,20.10533309,155.8,155.76,6.42013353]
[1748704229466,13.94803309,155.78,155.76,6.42013353]
[1748704229844,13.94803309,155.78,155.75,6.42054574]
[1748704230042,13.94803309,155.79,155.75,6.42054574]
[1748704230940,13.94803309,155.79,155.75,22.4719101]
[1748704231150,20.10533309,155.8,155.75,36.41994319]
[1748704232444,6.1573,155.8,155.76,18.933972]
[1748704232845,20.10533309,155.8,155.76,18.933972]
[1748704234153,13.94803309,155.79,155.75,6.42054574]
[1748704234559,13.94803309,155.78,155.75,6.42054574]
[1748704234946,13.94803309,155.79,155.75,6.42054574]
[1748704235354,13.94803309,155.78,155.75,6.42054574]
[1748704236669,13.94803309,155.78,155.74,25.35493]
[1748704237861,10.42,155.79,155.74,6.420958]
[1748704237862,13.94803309,155.77,155.74,6.420958]
[1748704238779,13.94803309,155.78,155.74,22.47335301]
[1748704241771,13.94803309,155.76,155.74,6.420958]
[1748704241975,13.94803309,155.77,155.74,6.420958]
[1748704242172,13.94803309,155.78,155.74,6.420958]
[1748704242349,13.94803309,155.78,155.74,22.47335301]
[1748704243707,13.94803309,155.77,155.74,22.47335301]
[1748704243972,8.90351429,155.77,155.74,16.05239501]
[1748704245678,8.90351429,155.77,155.73,6.42137032]
[1748704246259,8.90351429,155.74,155.7,18.64964886]
[1748704247154,8.90351429,155.74,155.71,6.4221951]
[1748704249081,19.34351429,155.74,155.71,6.4221951]
[1748704249283,19.34351429,155.74,155.7,6.42260757]
[1748704249674,19.34351429,155.74,155.7,22.47912651]
[1748704249978,13.91838494,155.73,155.7,22.47912651]
[1748704250173,24.35838494,155.74,155.7,22.47912651]
[1748704251236,10.44,155.74,155.7,36.39751145]
[1748704254494,10.44,155.74,155.71,18.933972]
[1748704254679,10.44,155.74,155.71,32.85235694]
[1748704255089,10.44,155.74,155.71,18.933972]
[1748704255295,10.44,155.74,155.72,6.42178268]
[1748704258800,24.35838494,155.74,155.72,6.42178268]
[1748704260286,13.91838494,155.73,155.72,6.42178268]
[1748704260488,24.35838494,155.74,155.72,6.42178268]
[1748704260904,24.35838494,155.74,155.7,22.47912651]
[1748704261721,15.58278494,155.73,155.7,22.47912651]
[1748704262804,15.58278494,155.73,155.7,16.05651894]
[1748704263000,1.6644,155.73,155.7,16.05651894]
[1748704264721,1.6644,155.73,155.7,22.47912651]
[1748704264929,13.91838494,155.71,155.68,6.42343268]
[1748704265217,13.91838494,155.69,155.67,0.15450817]
[1748704265519,30.35938494,155.68,155.67,0.15450817]
[1748704266248,13.91838494,155.63,155.62,6.42584092]
[1748704266597,13.91838494,155.63,155.58,69.70647599]
[1748704266598,24.33838494,155.63,155.59,6.42714827]
[1748704266916,24.33838494,155.63,155.59,25.07679713]
[1748704267415,10.42,155.63,155.59,55.06305275]
[1748704268725,10.42,155.63,155.62,20.3442942]
[1748704268892,10.42,155.63,155.62,6.42590926]
[1748704271240,10.42,155.63,155.61,6.42632221]
[1748704273212,24.33838494,155.63,155.61,6.42632221]
[1748704273641,13.91838494,155.62,155.58,6.42756138]
[1748704273812,13.91838494,155.61,155.58,6.42756138]
[1748704274414,21.99308494,155.62,155.58,6.42756138]
[1748704275515,8.0747,155.62,155.58,6.42756138]
[1748704275710,21.99308494,155.62,155.58,6.42756138]
[1748704276123,13.91838494,155.61,155.58,6.42756138]
[1748704277141,13.91838494,155.61,155.57,22.78223404]
[1748704278934,21.99308494,155.62,155.57,36.70061898]
[1748704281747,8.0747,155.62,155.57,36.70061898]
[1748704282050,21.99308494,155.62,155.57,36.70061898]
[1748704283974,13.91838494,155.58,155.57,6.42797454]
[1748704284522,13.91838494,155.58,155.56,0.11586947]
[1748704284723,13.91838494,155.57,155.56,0.11586947]
[1748704285587,10.44,155.58,155.56,0.11586947]
[1748704285879,8.0747,155.62,155.57,14.06054651]
[1748704285880,18.5147,155.62,155.57,14.06054651]
[1748704286085,18.5147,155.62,155.58,20.34594632]
[1748704286293,7.7253,155.68,155.61,13.91838494]
[1748704286585,10.44,155.67,155.63,13.91838494]
[1748704288050,10.44,155.67,155.62,36.40906736]
[1748704291182,10.44,155.67,155.63,13.91838494]
[1748704291963,10.44,155.67,155.64,13.91838494]
[1748704292764,36.44,155.67,155.59,16.06737632]
[1748704292980,13.91838494,155.62,155.59,16.06737632]
[1748704293184,13.91838494,155.63,155.58,0.28432314]
[1748704294892,24.35838494,155.63,155.58,0.28432314]
[1748704295289,24.35838494,155.63,155.59,6.42714827]
[1748704295486,13.91838494,155.62,155.59,6.42714827]
[1748704295961,24.35838494,155.63,155.59,6.42714827]
[1748704296362,13.91838494,155.62,155.59,6.42714827]
[1748704298396,13.91838494,155.61,155.59,6.42714827]
[1748704299574,13.91838494,155.61,155.57,6.71229768]
[1748704300186,7.7135,155.62,155.58,32.5680338]
[1748704300388,24.33838494,155.64,155.59,13.91838494]
[1748704300786,24.33838494,155.64,155.59,0.28432314]
[1748704300989,13.91838494,155.63,155.59,0.28432314]
[1748704301999,13.91838494,155.63,155.6,6.42673521]
[1748704303594,13.91838494,155.62,155.58,6.42756138]
[1748704304115,13.91838494,155.62,155.57,0.14216157]
[1748704304405,13.91838494,155.62,155.57,14.06054651]
[1748704305411,13.91838494,155.62,155.58,6.42756138]
[1748704308532,13.91838494,155.61,155.58,6.42756138]
[1748704310036,6.36,155.68,155.58,22.49646483]
[1748704310190,6.36,155.68,155.59,14.20270808]
[1748704310191,10.42,155.65,155.59,14.20270808]
[1748704310392,24.33838494,155.65,155.59,14.20270808]
[1748704310590,13.91838494,155.64,155.59,0.28432314]
[1748704311202,13.91838494,155.63,155.59,0.28432314]
[1748704311397,13.91838494,155.63,155.6,6.42673521]
[1748704311602,13.91838494,155.62,155.6,6.42673521]
[1748704312148,13.91838494,155.61,155.58,6.42756138]
[1748704312341,13.91838494,155.6,155.58,6.42756138]
[1748704313743,6.0069,155.62,155.56,0.11586947]
[1748704313744,13.91838494,155.61,155.57,6.42797454]
[1748704314228,13.91838494,155.6,155.57,22.4979109]
[1748704314519,13.91838494,155.6,155.57,6.42797454]
[1748704314820,13.91838494,155.59,155.57,6.42797454]
[1748704315019,13.91838494,155.58,155.56,6.54409208]
[1748704315222,13.91838494,155.57,155.56,6.54409208]
[1748704315429,13.91838494,155.57,155.56,0.11586947]
[1748704316807,13.91838494,155.57,155.56,6.54425723]
[1748704318201,13.91838494,155.58,155.56,6.54425723]
[1748704319548,1.6391,155.59,155.56,6.54425723]
[1748704319844,15.55748494,155.59,155.56,6.54425723]
[1748704320643,1.6391,155.59,155.56,6.54425723]
[1748704320933,1.6391,155.59,155.58,26.0]
[1748704321132,10.42,155.6,155.59,26.0]
[1748704322020,24.33838494,155.6,155.59,26.0]
[1748704323539,25.53838494,155.6,155.57,26.0]
[1748704323743,13.91838494,155.59,155.57,26.0]
[1748704324443,13.91838494,155.59,155.56,32.54422849]
[1748704325121,10.42,155.6,155.56,32.54422849]
[1748704325316,10.42,155.6,155.59,26.0]
[1748704325712,1.5836,155.63,155.61,26.0]
[1748704326113,13.91838494,155.62,155.6,26.0]
[1748704327137,13.91838494,155.62,155.6,32.42653267]
[1748704327741,1.5836,155.63,155.6,48.49337071]
[1748704330047,13.91838494,155.62,155.6,32.42653267]
[1748704331540,15.50198494,155.63,155.6,32.42653267]
[1748704332042,1.5836,155.63,155.6,32.42653267]
[1748704332926,15.50198494,155.63,155.6,48.49337071]
[1748704333126,1.5836,155.63,155.6,48.49337071]
[1748704333550,15.50198494,155.63,155.6,32.42653267]
[1748704334252,1.5836,155.63,155.6,32.42653267]
[1748704340548,1.5836,155.63,155.6,48.49337071]
[1748704343658,15.50198494,155.63,155.6,32.42653267]
[1748704345774,13.91838494,155.62,155.6,32.42653267]
[1748704346073,13.91838494,155.62,155.6,6.42653267]
[1748704346449,1.5836,155.63,155.6,6.42653267]
[1748704346450,13.91838494,155.61,155.6,6.42653267]
[1748704346650,13.91838494,155.62,155.6,6.42653267]
[1748704348375,1.5836,155.63,155.6,6.42653267]
[1748704348579,13.91838494,155.62,155.6,6.42653267]
[1748704348954,13.91838494,155.62,155.59,32.42704377]
[1748704349156,1.5836,155.63,155.58,26.0]
[1748704349157,13.91838494,155.6,155.58,26.0]
[1748704349965,13.91838494,155.61,155.6,26.0]
[1748704351164,13.91838494,155.61,155.6,32.42673521]
[1748704352368,13.91838494,155.62,155.6,32.42673521]
[1748704354486,13.91838494,155.62,155.6,26.0]
[1748704354664,13.91838494,155.62,155.6,32.42670152]
[1748704357568,13.91838494,155.62,155.6,26.0]
[1748704359169,1.5836,155.63,155.6,26.0]
[1748704359170,13.91838494,155.61,155.6,26.0]
[1748704359677,24.33838494,155.61,155.6,26.0]
[1748704360980,24.33838494,155.61,155.6,32.42673521]
[1748704363065,24.33838494,155.61,155.6,26.0]
[1748704365212,10.42,155.61,155.6,32.42673521]
[1748704367803,24.33838494,155.61,155.6,26.0]
[1748704367983,19.34152827,155.61,155.6,26.0]
[1748704370697,19.34152827,155.61,155.58,6.42744085]
[1748704373621,8.92152827,155.6,155.58,26.0]
[1748704373829,8.92152827,155.59,155.58,26.0]
[1748704375505,8.92152827,155.59,155.57,26.0]
[1748704375710,8.92152827,155.58,155.57,26.0]
[1748704378334,8.92152827,155.59,155.57,26.0]
[1748704379033,8.92152827,155.58,155.57,26.0]
[1748704379243,8.92152827,155.58,155.56,0.11586947]
[1748704379428,8.92152827,155.57,155.56,26.11586947]
[1748704382817,6.42688192,155.6,155.56,26.11586947]
[1748704383026,8.92152827,155.59,155.56,0.11586947]
[1748704383227,8.92152827,155.58,155.56,0.11586947]
[1748704384438,10.42,155.57,155.56,0.11586947]
[1748704390429,10.42,155.57,155.56,32.54425723]
[1748704395079,163.8027,155.61,155.56,41.4657855]
[1748704395372,163.8027,155.61,155.57,8.92152827]
[1748704395669,10.4,155.61,155.6,26.0]
[1748704395985,10.4,155.61,155.59,8.92152827]
[1748704396272,102.94,155.65,155.63,26.0]
[1748704397146,102.94,155.65,155.63,32.42510337]
[1748704398545,116.87085369,155.65,155.63,26.0]
[1748704399075,102.94,155.65,155.63,32.42538098]
[1748704401674,10.4,155.65,155.63,26.0]
[1748704402066,24.33085369,155.65,155.63,26.0]
[1748704403378,10.4,155.65,155.63,32.42547413]
[1748704409104,10.4,155.65,155.6,0.14216157]
[1748704409406,10.4,155.65,155.62,26.0]
[1748704409407,13.93085369,155.64,155.62,26.0]
[1748704411473,6.6621,155.63,155.57,6.42782563]
[1748704411808,13.93085369,155.61,155.57,32.42782563]
[1748704412008,13.93085369,155.62,155.57,46.35867932]
[1748704412213,20.59295369,155.63,155.58,13.93085369]
[1748704412372,6.6621,155.63,155.59,13.93085369]
[1748704412808,20.59295369,155.63,155.58,13.93085369]
[1748704413500,6.6621,155.63,155.6,26.0]
[1748704413707,6.6621,155.63,155.6,32.4264802]
[1748704414482,20.59295369,155.63,155.6,32.4264802]
[1748704416417,6.6621,155.63,155.59,6.42697828]
[1748704416652,20.59295369,155.63,155.6,26.0]
[1748704416819,13.93085369,155.62,155.61,26.0]
[1748704417533,13.93085369,155.62,155.57,6.42797454]
[1748704417742,13.93085369,155.61,155.57,6.42797454]
[1748704418061,13.93085369,155.61,155.59,26.0]
[1748704418759,13.08768843,155.63,155.59,26.0]
[1748704419060,13.93085369,155.62,155.59,26.0]
[1748704421946,13.93085369,155.61,155.59,26.0]
[1748704423628,13.93085369,155.6,155.57,6.42785934]
[1748704423942,13.93085369,155.6,155.57,32.42785934]
[1748704424120,10.4,155.6,155.57,32.42785934]
[1748704424326,10.4,155.6,155.57,46.35871303]
[1748704426161,10.4,155.6,155.59,26.0]
[1748704426337,10.4,155.6,155.59,32.42714827]
[1748704432357,30.99295369,155.63,155.59,32.42714827]
[1748704435962,25.98151787,155.63,155.59,32.42714827]
[1748704438150,17.0621,155.63,155.59,32.42714827]
[1748704438345,25.98151787,155.63,155.59,32.42714827]
[1748704440457,8.91941787,155.62,155.59,32.42714827]
[1748704446643,23.48766184,155.63,155.61,26.0]
[1748704446848,8.91941787,155.62,155.58,26.0]
[1748704447049,8.91941787,155.6,155.58,26.0]
[1748704447261,8.91941787,155.61,155.58,26.0]
[1748704447576,8.91941787,155.61,155.56,9.03528734]
[1748704447770,8.91941787,155.61,155.59,26.0]
[1748704448957,10.4,155.63,155.59,41.34649612]
[1748704449350,10.4,155.63,155.6,8.91941787]
[1748704449768,10.4,155.63,155.62,32.42590926]
[1748704451162,10.4,155.63,155.62,41.34532713]
[1748704451763,1.6251,155.66,155.62,41.34532713]
[1748704451958,16.8979,155.67,155.62,41.34532713]
[1748704452468,16.8979,155.67,155.62,32.42590926]
[1748704452656,16.8979,155.67,155.62,41.34532713]
[1748704453060,16.8979,155.67,155.62,57.41010029]
[1748704453575,25.81731787,155.67,155.62,57.41010029]
[1748704454076,28.50429318,155.67,155.62,60.0970756]
[1748704455167,28.50429318,155.67,155.62,48.49068242]
[1748704457661,11.60639318,155.66,155.62,32.42590926]
[1748704457867,11.60639318,155.65,155.62,32.42590926]
[1748704458082,11.60639318,155.66,155.62,32.42590926]
[1748704459291,28.50429318,155.67,155.62,32.42590926]
[1748704459490,28.50429318,155.67,155.62,44.03230244]
[1748704459679,28.50429318,155.67,155.62,60.0970756]
[1748704461379,28.50429318,155.67,155.62,48.49068242]
[1748704461575,11.60639318,155.66,155.62,48.49068242]
[1748704465422,16.8979,155.67,155.62,48.49068242]
[1748704465581,11.60639318,155.66,155.62,48.49068242]
[1748704473421,11.60639318,155.65,155.62,32.42590926]
[1748704474002,7.43042366,155.65,155.62,32.42590926]
[1748704474196,7.43042366,155.63,155.57,13.8583982]
[1748704474416,7.43042366,155.62,155.58,39.64]
[1748704474599,7.43042366,155.62,155.61,26.0]
[1748704475902,11.61466324,155.62,155.61,26.0]
[1748704476627,21.99466324,155.62,155.61,26.0]
[1748704477622,10.38,155.62,155.61,26.0]
[1748704477924,21.99466324,155.62,155.61,26.0]
[1748704478124,21.99466324,155.62,155.59,6.42701717]
[1748704478823,21.99466324,155.62,155.61,26.0]
[1748704479928,28.31696324,155.62,155.61,26.0]
[1748704480334,28.31696324,155.62,155.57,6.42796224]
[1748704480335,34.7428725,155.62,155.57,6.42796224]
[1748704480634,23.12820926,155.62,155.6,26.0]
[1748704481948,11.61466324,155.61,155.6,26.0]
[1748704486053,11.61466324,155.61,155.56,0.11586947]
[1748704486054,11.61466324,155.61,155.58,32.42756084]
[1748704493550,11.61466324,155.61,155.57,6.42773113]
[1748704493762,11.61466324,155.59,155.57,6.42773113]
[1748704494059,11.61466324,155.59,155.57,32.42773113]
[1748704496343,11.61466324,155.6,155.57,32.42773113]
[1748704498054,7.43524602,155.6,155.57,32.42773113]
[1748704499547,23.12844942,155.62,155.59,26.0]
[1748704499548,16.7023,155.62,155.59,26.0]
[1748704499742,10.38,155.62,155.59,26.0]
[1748704499946,10.38,155.62,155.59,33.43524602]
[1748704500265,10.38,155.62,155.61,26.0]
[1748704500454,10.38,155.62,155.61,32.42632221]
[1748704501362,17.81524602,155.62,155.59,26.0]
[1748704501664,10.38,155.62,155.6,26.0]
[1748704502977,7.43524602,155.61,155.6,26.0]
[1748704504058,11.61742062,155.61,155.6,26.0]
[1748704505241,11.61742062,155.61,155.58,32.42728071]
[1748704505443,11.61742062,155.6,155.58,32.42728071]
[1748704507268,11.61742062,155.6,155.58,26.0]
[1748704509172,11.61742062,155.6,155.58,32.42755902]
[1748704510553,10.38,155.62,155.58,32.42755902]
[1748704511256,21.99742062,155.62,155.58,32.42755902]
[1748704515182,11.61742062,155.61,155.58,32.42755902]
[1748704517357,21.99742062,155.62,155.58,32.42755902]
[1748704522095,21.99742062,155.62,155.58,48.49646247]
[1748704525993,17.81322988,155.62,155.58,48.49646247]
[1748704526790,7.43322988,155.61,155.58,48.49646247]
[1748704528294,7.43322988,155.6,155.58,32.42755902]
[1748704528994,10.38,155.62,155.58,32.42755902]
[1748704529172,10.38,155.62,155.58,39.8607889]
[1748704529395,10.38,155.62,155.61,26.0]
[1748704530299,10.38,155.62,155.61,32.42632221]
[1748704533038,10.38,155.62,155.61,39.85955209]
[1748704533524,10.38,155.62,155.61,40.14387523]
[1748704533731,10.36,155.66,155.61,74.85932962]
[1748704533919,10.36,155.66,155.65,26.0]
[1748704534798,10.36,155.66,155.65,32.42467073]
[1748704535706,148.5114,155.69,155.65,48.48634756]
[1748704535911,148.5114,155.69,155.65,60.08809782]
[1748704535912,10.36,155.69,155.65,60.08809782]
[1748704536105,10.36,155.69,155.68,26.0]
[1748704536910,21.96175026,155.69,155.68,26.0]
[1748704537320,21.96175026,155.69,155.66,6.42425799]
[1748704537521,11.60175026,155.67,155.66,32.42425799]
[1748704538116,11.60175026,155.68,155.66,32.42425799]
[1748704538436,21.96175026,155.69,155.66,32.42425799]
[1748704538617,10.36,155.69,155.66,32.42425799]
[1748704540702,21.96175026,155.69,155.66,32.42425799]
[1748704543833,10.36,155.69,155.66,32.42425799]